fUST/lending_fUST_20241118
["ID","MTS","AMOUNT","RATE_DAILY","PERIOD"]
[342482001,1731920743052,-1394.59,0.00014192,2]
[342482002,1731920743073,-2929.8,0.00014193,2]
[342482003,1731920743093,-5152.21,0.00014193,2]
[342482004,1731920743113,-1340.33,0.00014193,2]
[342482005,1731920743136,-590.5,0.00014193,2]
[342482006,1731920743157,-3307.31,0.00014193,2]
[342482007,1731920743178,-18516.27503913,0.00014193,2]
[342482008,1731920745092,-4937.53,0.00014192,2]
[342482009,1731920745113,-2592.93496087,0.00014193,2]
[342482010,1731920745137,-9553.13266008,0.00014193,2]
[342482011,1731920826098,-301.737294,0.00014094,2]
[342482012,1731920826122,-301.737294,0.00014162,2]
[342482013,1731920826144,-300.0,0.0001419,2]
[342482014,1731920826165,-905.24,0.00014191,2]
[342482015,1731920826187,-500.0,0.00014191,2]
[342482016,1731920826209,-1052.64,0.00014191,2]
[342482017,1731920826231,-30186.84,0.00014191,2]
[342482018,1731920826255,-615.59,0.00014191,2]
[342482019,1731920826275,-1276.06,0.00014191,2]
[342482020,1731920826297,-1037.44,0.00014191,2]
[342482021,1731920826317,-500.0,0.00014192,2]
[342482022,1731920826337,-501.60177779,0.00014192,2]
[342482023,1731920826357,-500.0,0.00014192,2]
[342482024,1731920826377,-501.75934028,0.00014192,2]
[342482025,1731920826398,-300.0,0.00014192,2]
[342482026,1731920826418,-500.00058547,0.00014192,2]
[342482027,1731920826438,-969.54,0.00014192,2]
[342482028,1731920826461,-500.0,0.00014192,2]
[342482029,1731920826482,-500.0,0.00014192,2]
[342482030,1731920826502,-500.0,0.00014192,2]
[342482031,1731920826522,-1284.49,0.00014192,2]
[342482032,1731920826543,-1540.31,0.00014192,2]
[342482033,1731920826563,-500.0,0.00014192,2]
[342482034,1731920826584,-525.28,0.00014192,2]
[342482035,1731920826609,-971.46,0.00014192,2]
[342482036,1731920826629,-1219.66,0.00014192,2]
[342482037,1731920826651,-500.0,0.00014192,2]
[342482038,1731920826673,-500.0,0.00014192,2]
[342482039,1731920826695,-504.21670174,0.00014192,2]
[342482040,1731920826718,-3169.5,0.00014192,2]
[342482041,1731920826738,-501.60218458,0.00014192,2]
[342482042,1731920826760,-919.86,0.00014192,2]
[342482043,1731920826780,-551.5,0.00014192,2]
[342482044,1731920826806,-583.9,0.00014192,2]
[342482045,1731920826827,-20229.65,0.00014192,2]
[342482046,1731920826848,-666.2,0.00014192,2]
[342482047,1731920826870,-11447.59,0.00014192,2]
[342482048,1731920826891,-500.0,0.00014192,2]
[342482049,1731920826912,-500.0,0.00014192,2]
[342482050,1731920826933,-4264.18,0.00014193,2]
[342482051,1731920826954,-500.0,0.00014193,2]
[342482052,1731920826977,-1174.6,0.00014193,2]
[342482053,1731920826998,-500.0,0.00014193,2]
[342482054,1731920827024,-500.0,0.00014193,2]
[342482055,1731920827044,-1542.81,0.00014193,2]
[342482056,1731920827065,-2450.08,0.00014193,2]
[342482057,1731920827085,-2006.24,0.00014193,2]
[342482058,1731920827105,-682.48,0.00014193,2]
[342482059,1731920827126,-500.0,0.00014193,2]
[342482060,1731920827146,-1236.99,0.00014193,2]
[342482061,1731920827165,-667.69,0.00014194,2]
[342482062,1731920827186,-500.0,0.00014194,2]
[342482063,1731920827208,-586.99,0.00014194,2]
[342482064,1731920827230,-235.60807303,0.00014194,2]
[342482065,1731920827249,-502.45610802,0.00014194,2]
[342482066,1731920827270,-500.0,0.00014194,2]
[342482067,1731920827291,-500.0,0.00014194,2]
[342482068,1731920827314,-556.25,0.00014194,2]
[342482069,1731920827334,-597.8173245,0.00014194,2]
[342482070,1731920827355,-500.0,0.00014194,2]
[342482071,1731920827376,-500.0,0.00014194,2]
[342482072,1731920827396,-863.32,0.00014194,2]
[342482073,1731920827416,-593.79,0.00014194,2]
[342482074,1731920827438,-758.81,0.00014194,2]
[342482075,1731920827458,-500.0,0.00014194,2]
[342482076,1731920827481,-500.0,0.00014194,2]
[342482077,1731920827502,-500.0,0.00014194,2]
[342482078,1731920827523,-637.8982733,0.00014194,2]
[342482079,1731920827545,-500.0,0.00014194,2]
[342482080,1731920827564,-916.75,0.00014194,2]
[342482081,1731920827584,-1330.42,0.00014194,2]
[342482082,1731920827607,-655.81,0.00014194,2]
[342482083,1731920827629,-2026.71,0.00014194,2]
[342482084,1731920827650,-1090.65,0.00014194,2]
[342482085,1731920827671,-637.29,0.00014194,2]
[342482086,1731920827693,-500.0,0.00014194,2]
[342482087,1731920827715,-892.3,0.00014194,2]
[342482088,1731920827735,-586.39505659,0.00014194,2]
[342482089,1731920827755,-1112.24,0.00014194,2]
[342482090,1731920827776,-539.66,0.00014194,2]
[342482091,1731920827797,-703.72,0.00014194,2]
[342482092,1731920827817,-715.57,0.00014194,2]
[342482093,1731920827838,-500.0,0.00014194,2]
[342482094,1731920827861,-631.88,0.00014194,2]
[342482095,1731920827883,-500.0,0.00014194,2]
[342482096,1731920827904,-500.0,0.00014194,2]
[342482097,1731920827926,-739.51,0.00014194,2]
[342482098,1731920827947,-500.0,0.00014194,2]
[342482099,1731920827971,-1835.28,0.00014194,2]
[342482100,1731920827991,-500.0,0.00014194,2]
[342482101,1731920828011,-500.0,0.00014194,2]
[342482102,1731920828032,-943.77,0.00014194,2]
[342482103,1731920828053,-500.0,0.00014194,2]
[342482104,1731920828075,-1613.19,0.00014194,2]
[342482105,1731920828096,-1856.54,0.00014194,2]
[342482106,1731920828119,-3493.85,0.00014194,2]
[342482107,1731920828140,-500.0,0.00014194,2]
[342482108,1731920828162,-500.0,0.00014194,2]
[342482109,1731920828184,-1364.67770528,0.00014194,2]
[342482110,1731920828206,-1609.99,0.00014194,2]
[342482111,1731920828234,-500.0,0.00014194,2]
[342482112,1731920828254,-1309.21,0.00014194,2]
[342482113,1731920828279,-1246.43,0.00014194,2]
[342482114,1731920828299,-1305.81,0.00014194,2]
[342482115,1731920828319,-500.0,0.00014194,2]
[342482116,1731920828339,-500.0,0.00014194,2]
[342482117,1731920828360,-500.0,0.00014195,2]
[342482118,1731920828380,-548.18,0.00014195,2]
[342482119,1731920828401,-500.0,0.00014195,2]
[342482120,1731920828422,-185.93221795,0.00014195,2]
[342482121,1731920828442,-500.0,0.00014195,2]
[342482122,1731920828464,-500.0,0.00014195,2]
[342482123,1731920828484,-534.23,0.00014195,2]
[342482124,1731920828505,-500.0,0.00014195,2]
[342482125,1731920828526,-596.64310261,0.00014195,2]
[342482126,1731920828547,-500.0,0.00014195,2]
[342482127,1731920828567,-500.0,0.00014195,2]
[342482128,1731920828588,-500.0,0.00014195,2]
[342482129,1731920828611,-232.46582213,0.00014195,2]
[342482130,1731920828630,-873.58,0.00014195,2]
[342482131,1731920828652,-500.0,0.00014195,2]
[342482132,1731920828673,-500.0,0.00014195,2]
[342482133,1731920828694,-500.0,0.00014195,2]
[342482134,1731920828717,-500.0,0.00014195,2]
[342482135,1731920828738,-500.0,0.00014195,2]
[342482136,1731920828758,-500.0,0.00014195,2]
[342482137,1731920828779,-591.41,0.00014195,2]
[342482138,1731920828801,-651.02,0.00014195,2]
[342482139,1731920828822,-503.15,0.00014195,2]
[342482140,1731920828843,-500.0,0.00014195,2]
[342482141,1731920828865,-434.08271786,0.00014195,2]
[342482142,1731920828885,-500.0,0.00014195,2]
[342482143,1731920828904,-508.63,0.00014195,2]
[342482144,1731920828924,-500.0,0.00014195,2]
[342482145,1731920828944,-601.02,0.00014195,2]
[342482146,1731920828966,-251.10224268,0.00014195,2]
[342482147,1731920828987,-500.0,0.00014195,2]
[342482148,1731920829006,-500.0,0.00014195,2]
[342482149,1731920829026,-641.70933548,0.00014195,2]
[342482150,1731920829046,-1000.0,0.00014195,2]
[342482151,1731920829066,-258.71011511,0.00014195,2]
[342482152,1731920829101,-500.0,0.00014195,2]
[342482153,1731920829126,-500.0,0.00014195,2]
[342482154,1731920829147,-600.5,0.00014195,2]
[342482155,1731920829170,-1223.88,0.00014195,2]
[342482156,1731920829193,-500.0,0.00014195,2]
[342482157,1731920829216,-500.0,0.00014195,2]
[342482158,1731920829237,-689.29,0.00014195,2]
[342482159,1731920829258,-539.34,0.00014195,2]
[342482160,1731920829280,-539.34,0.00014195,2]
[342482161,1731920829302,-539.34,0.00014195,2]
[342482162,1731920829322,-539.34,0.00014195,2]
[342482163,1731920829603,-500.0,0.00014195,2]
[342482164,1731920829624,-505.33361094,0.00014195,2]
[342482165,1731920829644,-566.13912296,0.00014195,2]
[342482166,1731920829666,-331.49385234,0.00014195,2]
[342482167,1731920829689,-500.0,0.00014195,2]
[342482168,1731920829710,-500.0,0.00014195,2]
[342482169,1731920829732,-891.97,0.00014195,2]
[342482170,1731920829752,-500.0,0.00014195,2]
[342482171,1731920829773,-500.0,0.00014195,2]
[342482172,1731920829794,-500.0,0.00014195,2]
[342482173,1731920829814,-500.0,0.00014195,2]
[342482174,1731920829834,-502.14406077,0.00014195,2]
[342482175,1731920829854,-527.76630813,0.00014195,2]
[342482176,1731920829874,-500.0,0.00014195,2]
[342482177,1731920829899,-514.51416902,0.00014195,2]
[342482178,1731920829920,-506.94241127,0.00014195,2]
[342482179,1731920829942,-500.0,0.00014195,2]
[342482180,1731920829963,-500.0,0.00014195,2]
[342482181,1731920829983,-507.21764348,0.00014195,2]
[342482182,1731920830003,-263.14520715,0.00014195,2]
[342482183,1731920830024,-522.69,0.00014195,2]
[342482184,1731920830045,-570.9,0.00014195,2]
[342482185,1731920830067,-515.71,0.00014195,2]
[342482186,1731920830088,-505.13,0.00014195,2]
[342482187,1731920830108,-502.3305659,0.00014195,2]
[342482188,1731920830129,-1036.77,0.00014195,2]
[342482189,1731920830150,-180.72094366,0.00014195,2]
[342482190,1731920830170,-500.0,0.00014195,2]
[342482191,1731920830191,-534.86,0.00014195,2]
[342482192,1731920830213,-1588.7,0.00014195,2]
[342482193,1731920830234,-500.99950478,0.00014195,2]
[342482194,1731920830257,-500.0,0.00014195,2]
[342482195,1731920830279,-500.0,0.00014195,2]
[342482196,1731920830299,-340.33322825,0.00014195,2]
[342482197,1731920830320,-500.0,0.00014195,2]
[342482198,1731920830340,-501.65480854,0.00014196,2]
[342482199,1731920830361,-543.01015995,0.00014196,2]
[342482200,1731920830381,-500.33673907,0.00014196,2]
[342482201,1731920830402,-501.46672556,0.00014196,2]
[342482202,1731920830423,-373.59787151,0.00014196,2]
[342482203,1731920830444,-500.0,0.00014196,2]
[342482204,1731920830466,-500.0,0.00014196,2]
[342482205,1731920830487,-532.24177617,0.00014196,2]
[342482206,1731920830508,-500.0,0.00014196,2]
[342482207,1731920830529,-500.0,0.00014196,2]
[342482208,1731920830549,-500.0,0.00014196,2]
[342482209,1731920830569,-500.0,0.00014196,2]
[342482210,1731920830590,-500.0,0.00014196,2]
[342482211,1731920830614,-500.0,0.00014196,2]
[342482212,1731920830634,-502.43139871,0.00014196,2]
[342482213,1731920830655,-500.0,0.00014196,2]
[342482214,1731920830676,-500.0,0.00014196,2]
[342482215,1731920830697,-500.0,0.00014196,2]
[342482216,1731920830718,-500.0,0.00014196,2]
[342482217,1731920830738,-500.0,0.00014196,2]
[342482218,1731920830759,-543.64495045,0.00014196,2]
[342482219,1731920830782,-500.0,0.00014196,2]
[342482220,1731920830802,-500.0,0.00014196,2]
[342482221,1731920830822,-500.0,0.00014196,2]
[342482222,1731920830842,-500.0,0.00014196,2]
[342482223,1731920830861,-294.0379966,0.00014196,2]
[342482224,1731920830882,-535.25488529,0.00014196,2]
[342482225,1731920830903,-500.0,0.00014196,2]
[342482226,1731920830923,-500.0,0.00014196,2]
[342482227,1731920830944,-515.93275559,0.00014196,2]
[342482228,1731920830966,-500.0,0.00014196,2]
[342482229,1731920830987,-264.39338841,0.00014196,2]
[342482230,1731920831006,-500.0,0.00014196,2]
[342482231,1731920831027,-500.0,0.00014196,2]
[342482232,1731920831047,-500.0,0.00014196,2]
[342482233,1731920831068,-500.72741222,0.00014196,2]
[342482234,1731920831089,-500.0,0.00014196,2]
[342482235,1731920831110,-500.0,0.00014196,2]
[342482236,1731920831130,-500.0,0.00014196,2]
[342482237,1731920831149,-523.06939883,0.00014196,2]
[342482238,1731920831170,-500.68500454,0.00014196,2]
[342482239,1731920831190,-152.23680051,0.00014196,2]
[342482240,1731920831210,-500.16440748,0.00014196,2]
[342482241,1731920831232,-500.31419887,0.00014196,2]
[342482242,1731920831254,-539.34,0.00014196,2]
[342482243,1731920831275,-539.34,0.00014196,2]
[342482244,1731920831296,-539.34,0.00014196,2]
[342482245,1731920831317,-539.34,0.00014196,2]
[342482246,1731920831338,-500.56707085,0.00014196,2]
[342482247,1731920831361,-500.0,0.00014196,2]
[342482248,1731920831381,-500.0,0.00014196,2]
[342482249,1731920831401,-500.0,0.00014196,2]
[342482250,1731920831423,-500.0,0.00014197,2]
[342482251,1731920831444,-500.0,0.00014197,2]
[342482252,1731920831464,-500.0,0.00014197,2]
[342482253,1731920831485,-500.0,0.00014197,2]
[342482254,1731920831506,-500.0,0.00014197,2]
[342482255,1731920831527,-465.6386721,0.00014197,2]
[342482256,1731920831547,-539.34,0.00014197,2]
[342482257,1731920831568,-539.34,0.00014197,2]
[342482258,1731920831589,-539.34,0.00014197,2]
[342482259,1731920831613,-539.34,0.00014197,2]
[342482260,1731920831634,-539.34,0.00014197,2]
[342482261,1731920831656,-151.0,0.00014198,2]
[342482262,1731920831678,-151.0,0.00014198,2]
[342482263,1731920831699,-151.0,0.00014198,2]
[342482264,1731920831728,-292.467115,0.00014198,2]
[342482265,1731920831748,-292.467115,0.00014198,2]
[342482266,1731920831770,-500.0,0.00014198,2]
[342482267,1731920831790,-500.0,0.00014198,2]
[342482268,1731920831811,-269.04184864,0.00014198,2]
[342482269,1731920831841,-151.0,0.00014198,2]
[342482270,1731920831869,-151.0,0.00014198,2]
[342482271,1731920831897,-941.467707,0.00014198,2]
[342482272,1731920831920,-941.467707,0.00014198,2]
[342482273,1731920831947,-301.737294,0.0001423,2]
[342482274,1731920831975,-301.737294,0.00014298,2]
[342482275,1731920832001,-301.737294,0.00014366,2]
[342482276,1731920832028,-1441.8,0.00014465,2]
[342482277,1731920832055,-5609.73,0.00014465,2]
[342482278,1731920832083,-857.53,0.00014465,2]
[342482279,1731920832109,-3890.9,0.00014465,2]
[342482280,1731920832133,-905.24,0.00014465,2]
[342482281,1731920832159,-500.0,0.00014465,2]
[342482282,1731920832187,-1052.64,0.00014465,2]
[342482283,1731920832217,-30186.84,0.00014465,2]
[342482284,1731920832241,-615.59,0.00014465,2]
[342482285,1731920832263,-1276.06,0.00014465,2]
[342482286,1731920832288,-1037.44,0.00014465,2]
[342482287,1731920832312,-500.0,0.00014466,2]
[342482288,1731920832338,-500.0,0.00014466,2]
[342482289,1731920832365,-500.0,0.00014466,2]
[342482290,1731920832390,-1283.8,0.00014466,2]
[342482291,1731920832416,-500.0,0.00014466,2]
[342482292,1731920832444,-632.92,0.00014466,2]
[342482293,1731920832473,-1028.66,0.00014466,2]
[342482294,1731920832495,-500.0,0.00014466,2]
[342482295,1731920832518,-1149.63,0.00014466,2]
[342482296,1731920832543,-500.0,0.00014466,2]
[342482297,1731920832570,-1004.3,0.00014466,2]
[342482298,1731920832596,-500.0,0.00014466,2]
[342482299,1731920832627,-244.86464047,0.00014466,2]
[342482300,1731920832653,-650.35,0.00014466,2]
[342482301,1731920832678,-3347.57,0.00014466,2]
[342482302,1731920832701,-500.0,0.00014466,2]
[342482303,1731920832726,-500.0,0.00014466,2]
[342482304,1731920832748,-585.97,0.00014466,2]
[342482305,1731920832771,-500.0,0.00014466,2]
[342482306,1731920832794,-2243.61,0.00014466,2]
[342482307,1731920832817,-500.0,0.00014466,2]
[342482308,1731920832840,-500.0,0.00014466,2]
[342482309,1731920832863,-500.0,0.00014466,2]
[342482310,1731920832886,-500.0,0.00014466,2]
[342482311,1731920832911,-500.0,0.00014466,2]
[342482312,1731920832936,-778.23,0.00014466,2]
[342482313,1731920832960,-681.81,0.00014466,2]
[342482314,1731920832991,-500.0,0.00014466,2]
[342482315,1731920833016,-794.06,0.00014466,2]
[342482316,1731920833041,-282.3565527,0.00014466,2]
[342482317,1731920833065,-2336.0,0.00014466,2]
[342482318,1731920833089,-500.0,0.00014466,2]
[342482319,1731920833113,-1940.59,0.00014466,2]
[342482320,1731920833138,-500.0,0.00014466,2]
[342482321,1731920833161,-500.0,0.00014466,2]
[342482322,1731920833184,-244.27085538,0.00014466,2]
[342482323,1731920833209,-774.88,0.00014466,2]
[342482324,1731920833235,-500.0,0.00014466,2]
[342482325,1731920833258,-867.31,0.00014466,2]
[342482326,1731920833282,-175.94086323,0.00014466,2]
[342482327,1731920833308,-500.0,0.00014466,2]
[342482328,1731920833332,-500.0,0.00014466,2]
[342482329,1731920833357,-5913.24,0.00014466,2]
[342482330,1731920833381,-500.0,0.00014466,2]
[342482331,1731920833406,-1012.57,0.00014466,2]
[342482332,1731920833431,-674.12,0.00014466,2]
[342482333,1731920833457,-500.0,0.00014466,2]
[342482334,1731920833482,-500.0,0.00014466,2]
[342482335,1731920833506,-1009.93,0.00014466,2]
[342482336,1731920833529,-500.0,0.00014466,2]
[342482337,1731920833554,-500.0,0.00014466,2]
[342482338,1731920833577,-811.1,0.00014466,2]
[342482339,1731920833604,-605.49,0.00014466,2]
[342482340,1731920833628,-615.91,0.00014466,2]
[342482341,1731920833653,-500.0,0.00014466,2]
[342482342,1731920833678,-564.18,0.00014466,2]
[342482343,1731920833703,-1132.48,0.00014466,2]
[342482344,1731920833730,-1394.59,0.00014466,2]
[342482345,1731920833754,-4937.53,0.00014466,2]
[342482346,1731920833778,-500.0,0.00014466,2]
[342482347,1731920833801,-500.0,0.00014466,2]
[342482348,1731920833826,-969.54,0.00014466,2]
[342482349,1731920833851,-500.0,0.00014466,2]
[342482350,1731920833875,-500.0,0.00014466,2]
[342482351,1731920833898,-500.0,0.00014466,2]
[342482352,1731920833921,-1284.49,0.00014466,2]
[342482353,1731920833946,-1540.31,0.00014466,2]
[342482354,1731920833972,-500.0,0.00014466,2]
[342482355,1731920833994,-525.28,0.00014466,2]
[342482356,1731920834018,-971.46,0.00014466,2]
[342482357,1731920834042,-1219.66,0.00014466,2]
[342482358,1731920834068,-500.0,0.00014466,2]
[342482359,1731920834092,-500.0,0.00014466,2]
[342482360,1731920834117,-3169.5,0.00014466,2]
[342482361,1731920834140,-919.86,0.00014466,2]
[342482362,1731920834164,-551.5,0.00014466,2]
[342482363,1731920834188,-583.9,0.00014466,2]
[342482364,1731920834211,-20229.65,0.00014466,2]
[342482365,1731920834236,-666.2,0.00014466,2]
[342482366,1731920834261,-11447.59,0.00014466,2]
[342482367,1731920834284,-500.0,0.00014466,2]
[342482368,1731920834308,-500.0,0.00014466,2]
[342482369,1731920834335,-4264.18,0.00014467,2]
[342482370,1731920834359,-300.3887417,0.00014467,2]
[342482371,1731920834384,-1174.6,0.00014467,2]
[342482372,1731920834408,-500.0,0.00014467,2]
[342482373,1731920834433,-500.0,0.00014467,2]
[342482374,1731920834457,-1542.81,0.00014467,2]
[342482375,1731920834483,-151.0,0.00014467,2]
[342482376,1731920834506,-2450.08,0.00014467,2]
[342482377,1731920834529,-2006.24,0.00014467,2]
[342482378,1731920834862,-682.48,0.00014467,2]
[342482379,1731920834897,-1236.99,0.00014467,2]
[342482380,1731920834918,-151.0,0.00014467,2]
[342482381,1731920834942,-667.69,0.00014468,2]
[342482382,1731920834963,-586.99,0.00014468,2]
[342482383,1731920834985,-500.0,0.00014468,2]
[342482384,1731920835006,-556.25,0.00014468,2]
[342482385,1731920835029,-500.0,0.00014468,2]
[342482386,1731920835049,-500.0,0.00014468,2]
[342482387,1731920835069,-539.34,0.00014468,2]
[342482388,1731920835089,-863.32,0.00014468,2]
[342482389,1731920835109,-593.79,0.00014468,2]
[342482390,1731920835130,-758.81,0.00014468,2]
[342482391,1731920835150,-500.0,0.00014468,2]
[342482392,1731920835172,-500.0,0.00014468,2]
[342482393,1731920835193,-500.0,0.00014468,2]
[342482394,1731920835214,-500.0,0.00014468,2]
[342482395,1731920835236,-916.75,0.00014468,2]
[342482396,1731920835257,-1330.42,0.00014468,2]
[342482397,1731920835279,-655.81,0.00014468,2]
[342482398,1731920835298,-2026.71,0.00014468,2]
[342482399,1731920835318,-1090.65,0.00014468,2]
[342482400,1731920835338,-637.29,0.00014468,2]
[342482401,1731920835358,-500.0,0.00014468,2]
[342482402,1731920835379,-892.3,0.00014468,2]
[342482403,1731920835399,-1112.24,0.00014468,2]
[342482404,1731920835419,-539.66,0.00014468,2]
[342482405,1731920835440,-703.72,0.00014468,2]
[342482406,1731920835460,-715.57,0.00014468,2]
[342482407,1731920835482,-500.0,0.00014468,2]
[342482408,1731920835502,-631.88,0.00014468,2]
[342482409,1731920835521,-500.0,0.00014468,2]
[342482410,1731920835542,-500.0,0.00014468,2]
[342482411,1731920835564,-739.51,0.00014468,2]
[342482412,1731920835585,-500.0,0.00014468,2]
[342482413,1731920835609,-1835.28,0.00014468,2]
[342482414,1731920835631,-500.0,0.00014468,2]
[342482415,1731920835654,-500.0,0.00014468,2]
[342482416,1731920835676,-943.77,0.00014468,2]
[342482417,1731920835697,-500.0,0.00014468,2]
[342482418,1731920835723,-1613.19,0.00014468,2]
[342482419,1731920835743,-1856.54,0.00014468,2]
[342482420,1731920835764,-3493.85,0.00014468,2]
[342482421,1731920835785,-500.0,0.00014468,2]
[342482422,1731920835806,-500.0,0.00014468,2]
[342482423,1731920835826,-1609.99,0.00014468,2]
[342482424,1731920835847,-500.0,0.00014468,2]
[342482425,1731920835868,-1309.21,0.00014468,2]
[342482426,1731920835889,-1246.43,0.00014468,2]
[342482427,1731920835910,-1305.81,0.00014468,2]
[342482428,1731920835931,-500.0,0.00014468,2]
[342482429,1731920835953,-151.0,0.00014469,2]
[342482430,1731920835976,-151.0,0.00014469,2]
[342482431,1731920835997,-500.0,0.00014469,2]
[342482432,1731920836020,-151.0,0.00014469,2]
[342482433,1731920836042,-548.18,0.00014469,2]
[342482434,1731920836064,-500.0,0.00014469,2]
[342482435,1731920836086,-500.0,0.00014469,2]
[342482436,1731920836107,-500.0,0.00014469,2]
[342482437,1731920836130,-534.23,0.00014469,2]
[342482438,1731920836151,-500.0,0.00014469,2]
[342482439,1731920836172,-500.0,0.00014469,2]
[342482440,1731920836194,-500.0,0.00014469,2]
[342482441,1731920836215,-218.810234,0.00014469,2]
[342482442,1731920836238,-500.0,0.00014469,2]
[342482443,1731920836258,-151.0,0.00014469,2]
[342482444,1731920836278,-873.58,0.00014469,2]
[342482445,1731920836299,-151.0,0.00014469,2]
[342482446,1731920836320,-500.0,0.00014469,2]
[342482447,1731920836342,-500.0,0.00014469,2]
[342482448,1731920836362,-500.0,0.00014469,2]
[342482449,1731920836382,-500.0,0.00014469,2]
[342482450,1731920836403,-500.0,0.00014469,2]
[342482451,1731920836424,-500.0,0.00014469,2]
[342482452,1731920836445,-591.41,0.00014469,2]
[342482453,1731920836469,-292.467115,0.00014469,2]
[342482454,1731920836490,-651.02,0.00014469,2]
[342482455,1731920836510,-292.467115,0.00014469,2]
[342482456,1731920836532,-503.15,0.00014469,2]
[342482457,1731920836553,-500.0,0.00014469,2]
[342482458,1731920836574,-500.0,0.00014469,2]
[342482459,1731920836596,-508.63,0.00014469,2]
[342482460,1731920836622,-500.0,0.00014469,2]
[342482461,1731920836643,-601.02,0.00014469,2]
[342482462,1731920836663,-500.0,0.00014469,2]
[342482463,1731920836684,-500.0,0.00014469,2]
[342482464,1731920836706,-1000.0,0.00014469,2]
[342482465,1731920836728,-500.0,0.00014469,2]
[342482466,1731920836748,-500.0,0.00014469,2]
[342482467,1731920836769,-600.5,0.00014469,2]
[342482468,1731920836789,-1223.88,0.00014469,2]
[342482469,1731920836810,-500.0,0.00014469,2]
[342482470,1731920836830,-500.0,0.00014469,2]
[342482471,1731920836852,-689.29,0.00014469,2]
[342482472,1731920836873,-500.0,0.00014469,2]
[342482473,1731920836895,-539.34,0.00014469,2]
[342482474,1731920836915,-539.34,0.00014469,2]
[342482475,1731920836936,-539.34,0.00014469,2]
[342482476,1731920836957,-539.34,0.00014469,2]
[342482477,1731920836979,-151.0,0.00014469,2]
[342482478,1731920837000,-151.0,0.00014469,2]
[342482479,1731920837021,-500.0,0.00014469,2]
[342482480,1731920837043,-941.467707,0.00014469,2]
[342482481,1731920837064,-500.0,0.00014469,2]
[342482482,1731920837087,-941.467707,0.00014469,2]
[342482483,1731920837108,-891.97,0.00014469,2]
[342482484,1731920837129,-500.0,0.00014469,2]
[342482485,1731920837151,-500.0,0.00014469,2]
[342482486,1731920837172,-500.0,0.00014469,2]
[342482487,1731920837194,-500.0,0.00014469,2]
[342482488,1731920837215,-500.0,0.00014469,2]
[342482489,1731920837239,-522.69,0.00014469,2]
[342482490,1731920837260,-570.9,0.00014469,2]
[342482491,1731920837281,-151.0,0.00014469,2]
[342482492,1731920837303,-515.71,0.00014469,2]
[342482493,1731920837323,-505.13,0.00014469,2]
[342482494,1731920837345,-151.0,0.00014469,2]
[342482495,1731920837367,-1036.77,0.00014469,2]
[342482496,1731920837388,-151.0,0.00014469,2]
[342482497,1731920837409,-151.0,0.00014469,2]
[342482498,1731920837431,-151.0,0.00014469,2]
[342482499,1731920837452,-500.0,0.00014469,2]
[342482500,1731920837475,-534.86,0.00014469,2]